bitfinex/quotes_BTCUSD_20240703
["timestamp","ask_amount","ask_price","bid_price","bid_amount"]
[1720002819025,0.00978511,59967.0,59958.0,0.1602988]
[1720002819183,0.00978511,59962.0,59958.0,0.1602988]
[1720002819382,0.08015582,59976.0,59958.0,0.1602988]
[1720002819383,0.00978511,59959.0,59958.0,0.1602988]
[1720002819588,0.08015582,59976.0,59958.0,0.1602988]
[1720002819792,0.08015582,59970.0,59960.0,0.1602988]
[1720002819990,0.08015582,59963.0,59960.0,0.1602988]
[1720002820624,0.08015582,59963.0,59947.0,0.2471]
[1720002820834,0.06985553,59949.0,59947.0,0.2471]
[1720002821266,0.52031115,59948.0,59935.0,0.2407]
[1720002821429,0.52031115,59947.0,59935.0,0.2407]
[1720002821610,0.06985553,59949.0,59935.0,0.2407]
[1720002821611,0.52031115,59946.0,59935.0,0.2407]
[1720002821813,0.06985553,59949.0,59935.0,0.2407]
[1720002822112,1.32514436,59948.0,59935.0,0.2407]
[1720002822312,0.08015582,59943.0,59935.0,0.2407]
[1720002822676,0.08015582,59936.0,59915.0,0.2407]
[1720002822810,0.08015582,59936.0,59918.0,0.1602988]
[1720002822811,0.08015582,59919.0,59918.0,0.1602988]
[1720002822995,0.08015582,59919.0,59913.0,0.3232]
[1720002822996,0.56586837,59919.0,59913.0,0.3232]
[1720002823235,1.21452806,59918.0,59904.0,0.2407]
[1720002823477,0.01954851,59908.0,59905.0,0.1602988]
[1720002823677,0.94762024,59907.0,59904.0,0.2407]
[1720002823880,1.00627499,59906.0,59905.0,0.1602988]
[1720002824081,0.86746442,59906.0,59905.0,0.1602988]
[1720002824320,1.6824871,59906.0,59905.0,0.1602988]
[1720002824537,1.54365337,59906.0,59891.0,0.2407]
[1720002824738,0.09970203,59893.0,59891.0,0.4009988]
[1720002825065,1.29475174,59892.0,59889.0,0.00049298]
[1720002825266,1.21459592,59891.0,59889.0,0.00049298]
[1720002825474,0.69403348,59890.0,59889.0,0.00049298]
[1720002825660,1.89078487,59890.0,59889.0,0.00049298]
[1720002825870,2.14972338,59890.0,59889.0,1e-08]
[1720002826050,2.87002218,59890.0,59889.0,1e-08]
[1720002826278,2.87002218,59890.0,59811.0,0.01741435]
[1720002826279,0.3,59880.0,59811.0,0.01741435]
[1720002826480,0.3,59880.0,59791.0,0.48093494]
[1720002826481,2.96161806,59800.0,59791.0,0.48093494]
[1720002826610,0.00975913,59795.0,59792.0,0.0167]
[1720002826805,0.02462427,59796.0,59792.0,0.0167]
[1720002827009,2.96161806,59800.0,59792.0,0.0167]
[1720002827010,0.98630118,59795.0,59792.0,0.0167]
[1720002827221,1.73356418,59794.0,59792.0,0.0167]
[1720002827427,0.5463,59771.0,59750.0,0.2654928]
[1720002827636,0.00975226,59754.0,59750.0,0.2654928]
[1720002827829,0.00975226,59754.0,59733.0,0.0843]
[1720002827830,0.3178,59750.0,59733.0,0.0843]
[1720002828029,0.565,59743.0,59709.0,0.0134577]
[1720002828372,0.28015582,59711.0,59698.0,0.47859556]
[1720002828610,0.28015582,59711.0,59665.0,0.0004]
[1720002828611,0.89415582,59705.0,59665.0,0.0004]
[1720002828754,0.08,59687.0,59686.0,0.0189]
[1720002828956,0.2,59732.0,59686.0,0.0189]
[1720002828957,0.01950407,59745.0,59686.0,0.0189]
[1720002829172,0.3602988,59793.0,59707.0,0.0957]
[1720002829406,0.3602988,59793.0,59735.0,0.3085]
[1720002829407,0.83068091,59777.0,59735.0,0.3085]
[1720002829583,0.1602988,59793.0,59733.0,0.0943]
[1720002829584,0.34803842,59776.0,59744.0,0.19984301]
[1720002829781,0.1602988,59793.0,59752.0,0.5618]
[1720002829982,0.1602988,59793.0,59737.0,0.08015582]
[1720002829983,0.90085415,59792.0,59755.0,0.2533]
[1720002830184,0.90085415,59792.0,59767.0,0.2533]
[1720002830488,2.96161806,59800.0,59791.0,0.5]
[1720002830649,0.50884636,59800.0,59799.0,1.14195582]
[1720002830844,0.23551996,59886.0,59799.0,1.14195582]
[1720002830845,0.23551996,59886.0,59843.0,0.5]
[1720002831067,0.2622,59897.0,59844.0,0.0167]
[1720002831305,0.0114,59856.0,59834.0,0.5]
[1720002831503,0.2,59888.0,59834.0,0.5]
[1720002831704,0.48093494,59862.0,59839.0,0.1602988]
[1720002831961,3.756895,59861.0,59839.0,0.1602988]
[1720002832164,3.756895,59861.0,59792.0,0.01646022]
[1720002832165,0.48093494,59846.0,59792.0,0.1069]
[1720002832367,0.48093494,59846.0,59714.0,0.8]
[1720002832368,0.3275,59837.0,59794.0,0.48093494]
[1720002832507,0.3275,59837.0,59781.0,0.1072]
[1720002832508,0.08015582,59833.0,59781.0,0.1072]
[1720002832716,0.08015582,59833.0,59802.0,0.5]
[1720002832922,0.08015582,59833.0,59781.0,0.1072]
[1720002832923,0.08015582,59833.0,59806.0,0.5]
[1720002833136,0.08015582,59833.0,59812.0,0.5]
[1720002833353,0.48093494,59832.0,59823.0,0.1602988]
[1720002833563,0.48093494,59832.0,59803.0,0.2131]
[1720002833564,0.08015582,59845.0,59831.0,0.1602988]
[1720002833769,0.48093494,59844.0,59833.0,0.1602988]
[1720002833971,0.08015582,59858.0,59833.0,0.1602988]
[1720002833972,0.48093494,59843.0,59833.0,0.1602988]
[1720002834179,0.08015582,59858.0,59842.0,0.2661988]
[1720002834406,0.48093494,59857.0,59849.0,0.1602988]
[1720002834583,0.08015582,59869.0,59853.0,0.3]
[1720002834897,0.08015582,59869.0,59860.0,0.1602988]
[1720002835119,0.3022,59884.0,59864.0,0.1602988]
[1720002835325,0.3022,59884.0,59842.0,0.1059]
[1720002835326,0.2,59895.0,59865.0,0.1602988]
[1720002835524,0.48093494,59889.0,59875.0,0.1602988]
[1720002835729,0.2,59899.0,59877.0,0.1602988]
[1720002835888,0.2,59897.0,59877.0,0.1602988]
[1720002836291,0.5424,59901.0,59881.0,0.1602988]
[1720002836549,0.2,59897.0,59882.0,0.1602988]
[1720002836776,0.5424,59901.0,59882.0,0.1602988]
[1720002836909,0.58316094,59900.0,59884.0,0.1602988]
[1720002837108,0.89552094,59899.0,59884.0,0.1602988]
[1720002837348,0.2,59897.0,59884.0,0.1602988]
[1720002837531,0.836151,59896.0,59862.0,0.1072]
[1720002837732,0.38424,59896.0,59870.0,0.1602988]
[1720002837961,0.38424,59896.0,59862.0,0.1072]
[1720002837962,0.0167,59902.0,59881.0,0.1602988]
[1720002838224,0.08015582,59882.0,59881.0,0.1602988]
[1720002838965,0.08015582,59888.0,59881.0,0.1602988]
[1720002839164,0.08015582,59888.0,59880.0,0.1059]
[1720002839363,0.08015582,59882.0,59880.0,0.1059]
[1720002840038,0.08015582,59882.0,59881.0,0.1602988]
[1720002840243,0.08015582,59888.0,59881.0,0.4602988]
[1720002840568,0.08015582,59888.0,59862.0,0.6072]
[1720002840569,0.08015582,59882.0,59862.0,0.1072]
[1720002840694,0.08015582,59882.0,59854.0,0.01646022]
[1720002840695,0.08015582,59868.0,59854.0,0.01646022]
[1720002840890,0.08015582,59855.0,59850.0,0.1072]
[1720002841151,0.08015582,59855.0,59839.0,0.1072]
[1720002841350,0.08015582,59840.0,59790.0,0.0963]
[1720002841485,0.08015582,59840.0,59824.0,0.48093494]
[1720002841486,0.08015582,59831.0,59824.0,0.48093494]
[1720002841844,0.08015582,59840.0,59803.0,0.5]
[1720002842060,0.08015582,59840.0,59812.0,0.5]
[1720002842293,0.08015582,59834.0,59812.0,0.5]
[1720002842500,0.08015582,59827.0,59804.0,0.1149]
[1720002842827,0.08015582,59834.0,59816.0,0.5]
[1720002843032,0.08015582,59861.0,59830.0,0.5]
[1720002843240,0.48093494,59847.0,59836.0,0.5]
[1720002843434,0.08015582,59861.0,59829.0,0.08015582]
[1720002843435,0.08015582,59861.0,59842.0,0.5]
[1720002843634,0.08015582,59861.0,59829.0,0.08015582]
[1720002843635,0.08015582,59861.0,59860.0,0.1602988]
[1720002843833,0.08015582,59888.0,59860.0,0.1602988]
[1720002844058,0.3,59886.0,59843.0,0.0984]
[1720002844390,0.08015582,59848.0,59830.0,0.5]
[1720002844543,0.28015582,59888.0,59817.0,0.0165]
[1720002844544,0.08015582,59888.0,59845.0,0.5]
[1720002844745,0.08015582,59888.0,59846.0,0.5]
[1720002844746,0.48093494,59864.0,59846.0,0.5]
[1720002844974,0.08015582,59888.0,59846.0,0.5]
[1720002845181,0.08015582,59868.0,59852.0,0.5]
[1720002845359,0.08015582,59861.0,59840.0,0.5]
[1720002845583,0.08015582,59888.0,59848.0,0.5]
[1720002845930,0.08015582,59888.0,59844.0,0.08015582]
[1720002845931,0.48093494,59882.0,59857.0,0.5]
[1720002846203,0.48093494,59899.0,59863.0,0.5]
[1720002846602,0.08015582,59909.0,59890.0,0.1602988]
[1720002846834,0.48093494,59898.0,59892.0,0.1602988]
[1720002847009,0.08015582,59909.0,59893.0,0.1602988]
[1720002847201,0.3161501,59910.0,59893.0,0.1602988]
[1720002847406,0.3,59906.0,59893.0,0.1602988]
[1720002847624,0.3161501,59910.0,59893.0,0.1602988]
[1720002847835,0.3,59895.0,59854.0,0.0165]
[1720002848036,0.08015582,59886.0,59873.0,0.1602988]
[1720002848218,0.08015582,59897.0,59857.0,0.08015582]
[1720002848555,0.08015582,59909.0,59851.0,0.08015582]
[1720002848556,0.38015582,59909.0,59881.0,0.1602988]
[1720002848713,0.48093494,59897.0,59881.0,0.1602988]
[1720002848888,0.08015582,59909.0,59881.0,0.1602988]
[1720002849092,0.0161501,59910.0,59881.0,0.1602988]
[1720002849316,0.00083,59882.0,59880.0,0.5]
[1720002849542,0.0161501,59910.0,59881.0,0.1602988]
[1720002849715,0.48093494,59897.0,59880.0,0.5]
[1720002849919,0.0111501,59910.0,59881.0,0.08015582]
[1720002850096,0.0111501,59910.0,59875.0,0.5]
[1720002850097,0.48093494,59900.0,59875.0,0.5]
[1720002850295,0.08015582,59903.0,59869.0,0.5]
[1720002850296,0.08015582,59891.0,59869.0,0.5]
[1720002850500,0.08015582,59903.0,59869.0,0.5]
[1720002850705,0.48093494,59901.0,59897.0,0.1602988]
[1720002850887,0.48093494,59901.0,59900.0,0.1602988]
[1720002851083,0.08015582,59909.0,59900.0,0.1602988]
[1720002851287,0.0111501,59910.0,59904.0,0.1602988]
[1720002851485,0.0111501,59910.0,59876.0,0.08015582]
[1720002851486,0.0111501,59910.0,59909.0,0.1602988]
[1720002851703,0.0111501,59910.0,59858.0,0.08015582]
[1720002851704,0.6232031,59910.0,59872.0,0.5]
[1720002851907,0.08015582,59907.0,59897.0,0.1602988]
[1720002852129,0.0111501,59910.0,59899.0,0.1602988]
[1720002852781,0.00835,59942.0,59909.0,0.1602988]
[1720002852933,0.48093494,59930.0,59909.0,0.1602988]
[1720002853135,0.00835,59942.0,59916.0,0.08015582]
[1720002853339,0.48093494,59932.0,59913.0,0.5]
[1720002853536,0.00835,59942.0,59909.0,0.1602988]
[1720002853739,0.00835,59942.0,59906.0,0.5]
[1720002853740,0.48093494,59931.0,59930.0,0.1602988]
[1720002853938,0.30835,59942.0,59930.0,0.1602988]
[1720002853939,0.00835,59942.0,59930.0,0.1602988]
[1720002854192,0.00835,59942.0,59936.0,0.1602988]
[1720002854401,0.00835,59942.0,59907.0,0.08015582]
[1720002854402,0.00835,59942.0,59939.0,0.1602988]
[1720002854684,0.00835,59942.0,59940.0,0.1602988]
[1720002855097,0.00835,59942.0,59941.0,0.1602988]
[1720002856009,0.3,59940.0,59899.0,0.5]
[1720002856206,0.33725,59942.0,59925.0,0.1602988]
[1720002856342,0.08015582,59935.0,59925.0,0.1602988]
[1720002856547,0.08015582,59933.0,59925.0,0.1602988]
[1720002856751,0.34515582,59941.0,59925.0,0.1602988]
[1720002856990,0.33725,59942.0,59925.0,0.1602988]
[1720002856991,0.00835,59942.0,59925.0,0.1602988]
[1720002857599,0.00835,59942.0,59941.0,0.1602988]
[1720002857777,0.48093494,59964.0,59941.0,0.1602988]
[1720002858122,0.48093494,59964.0,59928.0,0.5]
[1720002858123,0.48093494,59964.0,59953.0,0.1602988]
[1720002858312,0.00834,59970.0,59953.0,0.1602988]
[1720002861260,0.00834,60002.0,59987.0,0.5]
[1720002861459,0.00839,60023.0,60001.0,0.1602988]
[1720002861460,0.48093494,60014.0,60001.0,0.1602988]
[1720002861573,0.00839,60023.0,60013.0,0.1602988]
[1720002861784,0.48093494,60017.0,60013.0,0.1602988]
[1720002861980,0.00839,60023.0,60013.0,0.1602988]
[1720002862181,0.00839,60023.0,60020.0,0.1602988]
[1720002862385,0.00839,60023.0,59907.0,0.00940284]
[1720002862386,0.3,60008.0,59981.0,0.48093494]
[1720002862605,0.3186,60016.0,59981.0,0.48093494]
[1720002862606,0.08015582,59992.0,59981.0,0.48093494]
[1720002862821,0.4585,60015.0,59989.0,0.1602988]
[1720002863022,0.48093494,60020.0,59989.0,0.1602988]
[1720002863448,0.00839,60023.0,59997.0,0.08015582]
[1720002863974,0.00839,60023.0,60004.0,0.08015582]
[1720002864132,0.00839,60023.0,59992.0,0.5]
[1720002864280,0.00839,60023.0,59999.0,0.08015582]
[1720002864444,0.00839,60023.0,60022.0,0.1602988]
[1720002865670,0.00839,60023.0,59980.0,0.48093494]
[1720002865671,0.00839,60023.0,59980.0,0.98093494]
[1720002865871,0.00839,60029.0,60014.0,0.1602988]
[1720002866472,0.48093494,60027.0,60014.0,0.1602988]
[1720002866673,0.08015582,60028.0,60014.0,0.1602988]
[1720002866674,0.63386208,60026.0,60014.0,0.1602988]
[1720002866896,0.25357508,60019.0,59988.0,0.2]
[1720002867112,0.25357508,60019.0,59980.0,0.52735986]
[1720002867113,0.08015582,60006.0,60001.0,0.1602988]
[1720002867496,0.303,60013.0,60001.0,0.1602988]
[1720002867709,0.25357508,60010.0,60001.0,0.1602988]
[1720002867925,0.2411,60011.0,60001.0,0.1602988]
[1720002868174,0.2411,60011.0,59981.0,0.48093494]
[1720002868175,0.25357508,60002.0,59981.0,0.48093494]
[1720002868301,0.3011,60011.0,59988.0,0.1602988]
[1720002868302,0.25357508,59996.0,59988.0,0.1602988]
[1720002868505,0.25357508,59998.0,59988.0,0.1602988]
[1720002868704,0.25357508,60001.0,59988.0,0.1602988]
[1720002868881,0.25357508,59998.0,59988.0,0.1602988]
[1720002869086,0.25357508,60001.0,59988.0,0.1602988]
[1720002869560,0.6,60006.0,59965.0,0.08015582]
[1720002869561,0.25357508,60006.0,59989.0,0.1602988]
[1720002869996,0.3,60014.0,59972.0,0.08015582]
[1720002869997,0.25357508,60010.0,59993.0,0.1602988]
[1720002870278,0.25357508,60004.0,59993.0,0.1602988]
[1720002870665,0.38315582,60013.0,59993.0,0.1602988]
[1720002870666,0.25357508,60002.0,59993.0,0.1602988]
[1720002870804,0.25357508,60010.0,59993.0,0.1602988]
[1720002871007,0.5411,60011.0,59993.0,0.1602988]
[1720002871008,0.25357508,60008.0,59993.0,0.1602988]
[1720002871340,0.46314308,60007.0,59993.0,0.1602988]
[1720002871536,0.25357508,60002.0,59993.0,0.1602988]
[1720002872110,0.31357508,60002.0,59993.0,0.1602988]
[1720002872324,0.25357508,59998.0,59993.0,0.1602988]
[1720002872532,0.25357508,59988.0,59964.0,0.48093494]
[1720002872741,0.55357508,59989.0,59979.0,0.48093494]
[1720002872913,0.5531,59982.0,59953.0,0.2]
[1720002873119,0.149703,59981.0,59966.0,0.1602988]
[1720002873320,0.5531,59982.0,59966.0,0.1602988]
[1720002873621,0.25357508,59985.0,59944.0,0.48093494]
[1720002873622,0.25357508,59991.0,59974.0,0.1602988]
[1720002873818,0.2415,59993.0,59974.0,0.1602988]
[1720002873819,0.25357508,59987.0,59974.0,0.1602988]
[1720002874043,0.25357508,59987.0,59961.0,0.08015582]
[1720002874044,0.03465528,60000.0,59986.0,0.2]
[1720002874248,0.48093494,59999.0,59989.0,0.08015582]
[1720002874448,0.48093494,60016.0,59996.0,0.08015582]
[1720002874739,0.48093494,60016.0,60002.0,0.08015582]
[1720002874962,0.48093494,60016.0,59996.0,0.08015582]
[1720002875161,0.48093494,60019.0,59995.0,0.2]
[1720002875371,0.25357508,60018.0,59992.0,0.2]
[1720002875594,0.48093494,60019.0,59982.0,0.28015582]
[1720002875595,0.25357508,60013.0,59982.0,0.28015582]
[1720002875768,0.25357508,60010.0,59983.0,0.68093494]
[1720002876202,0.3,60017.0,59985.0,0.08015582]
[1720002876443,0.3,60017.0,60001.0,0.1602988]
[1720002876721,0.48093494,60009.0,60003.0,0.1602988]
[1720002876860,0.25357508,60012.0,60003.0,0.1602988]
[1720002877074,0.25357508,59998.0,59969.0,0.2]
[1720002877305,0.08015582,60005.0,59978.0,0.48093494]
[1720002877306,0.25357508,59993.0,59978.0,0.48093494]
[1720002877519,0.25357508,59993.0,59916.0,0.08]
[1720002877520,0.25357508,59978.0,59950.0,0.48093494]
[1720002877755,0.08015582,59980.0,59950.0,0.48093494]
[1720002877756,0.25357508,59967.0,59966.0,0.48093494]
[1720002877934,2.344592,59977.0,59950.0,0.48093494]
[1720002877935,0.25357508,59977.0,59950.0,0.48093494]
[1720002878135,0.03380932,59976.0,59951.0,0.08015582]
[1720002878311,0.2539,59981.0,59965.0,0.1602988]
[1720002878511,0.2539,59981.0,59957.0,0.08015582]
[1720002878512,0.03381502,59980.0,59970.0,0.1602988]
[1720002878700,0.25357508,59982.0,59971.0,0.1602988]
[1720002878904,0.03381667,59981.0,59971.0,0.1602988]
[1720002879114,0.25357508,59987.0,59971.0,0.1602988]
[1720002879333,0.69595752,59986.0,59971.0,0.1602988]
[1720002879542,0.25357508,59980.0,59971.0,0.16025372]
[1720002879711,0.03381752,59979.0,59971.0,0.16025372]
[1720002879967,0.22361508,59977.0,59971.0,0.16025372]
[1720002880144,0.03381257,59976.0,59971.0,0.16025372]
[1720002880349,0.03,59997.0,59971.0,0.16025372]
[1720002880350,0.22361508,59978.0,59971.0,0.16025372]
[1720002880546,0.06,59980.0,59971.0,0.16025372]
[1720002880547,0.03381265,59977.0,59971.0,0.16025372]
[1720002880747,0.22361508,59980.0,59971.0,0.16025372]
[1720002880981,0.14856045,59979.0,59971.0,0.16025372]
[1720002881113,0.36,59984.0,59971.0,0.16025372]
[1720002881114,0.03381279,59978.0,59971.0,0.16025372]
[1720002881317,0.3,59984.0,59971.0,0.16025372]
[1720002881318,0.03381279,59977.0,59971.0,0.16025372]
[1720002881523,0.03381279,59976.0,59971.0,0.16025372]
[1720002881731,0.22361508,59987.0,59971.0,0.16025372]
[1720002881732,0.03381279,59975.0,59971.0,0.16025372]
[1720002881980,0.0338177,59974.0,59971.0,0.16025372]
[1720002882205,0.48093494,59990.0,59971.0,0.16116672]
[1720002882206,0.0338177,59973.0,59971.0,0.16116672]
[1720002882426,0.3,59982.0,59971.0,0.16116672]
[1720002882427,1.1731416,59972.0,59971.0,0.000913]
[1720002882623,1.1731416,59972.0,59925.0,0.5]
[1720002882624,0.3,59970.0,59941.0,0.2]
[1720002882825,0.22361508,59962.0,59956.0,0.1602988]
[1720002883040,0.71713947,59961.0,59956.0,0.1602988]
[1720002883269,0.22361508,59962.0,59956.0,0.1602988]
[1720002883270,1.08218806,59960.0,59956.0,0.1602988]
[1720002883445,0.22361508,59953.0,59931.0,0.48093494]
[1720002883646,0.5573,59943.0,59937.0,0.1602988]
[1720002883850,0.5573,59943.0,59914.0,0.48093494]
[1720002883851,0.48297053,59942.0,59915.0,0.2]
[1720002884113,0.65621153,59941.0,59937.0,0.1602988]
[1720002884284,0.22361508,59935.0,59914.0,0.48093494]
[1720002884489,0.78091508,59922.0,59911.0,0.009152]
[1720002884689,0.33886253,59921.0,59912.0,0.48093494]
[1720002884860,0.11524745,59920.0,59912.0,0.1602988]
[1720002885201,0.35941944,59919.0,59912.0,0.1602988]
[1720002885398,0.22361508,59916.0,59912.0,0.1602988]
[1720002886304,0.3,59987.0,59925.0,0.2]
[1720002886484,0.3,59987.0,59964.0,0.08015582]
[1720002886485,0.48093494,59969.0,59964.0,0.08015582]
[1720002886679,0.48093494,59969.0,59953.0,0.2]
[1720002886680,0.03379789,59968.0,59954.0,0.2]
[1720002886902,0.03379789,59973.0,59954.0,0.2]
[1720002887041,0.78641508,59986.0,59954.0,0.2]
[1720002887042,0.22361508,59981.0,59954.0,0.2]
[1720002887299,0.3,59991.0,59952.0,0.08015582]
[1720002887300,0.2563,60000.0,59979.0,0.08015582]
[1720002887456,0.33733,60002.0,59987.0,0.1602988]
[1720002887457,0.48093494,59996.0,59987.0,0.1602988]
[1720002887649,0.22361508,59993.0,59968.0,0.2]
[1720002887828,0.22361508,59989.0,59970.0,0.2]
[1720002888023,0.22361508,59990.0,59970.0,0.68093494]
[1720002888222,0.22361508,59990.0,59974.0,0.1602988]
[1720002888470,0.33592267,59989.0,59974.0,0.1602988]
[1720002888694,0.3,59996.0,59974.0,0.1602988]
[1720002888695,0.22361508,59984.0,59974.0,0.1602988]
[1720002889200,0.11311574,59983.0,59974.0,0.1602988]
[1720002889363,0.2595,59986.0,59974.0,0.1602988]
[1720002889978,0.22361508,59989.0,59968.0,0.08015582]
[1720002889979,0.11313656,59985.0,59975.0,0.1602988]
[1720002890340,0.11313704,59984.0,59975.0,0.1602988]
[1720002890711,0.22361508,59980.0,59975.0,0.1602988]
[1720002890890,0.263077,59983.0,59976.0,0.00333428]
[1720002890891,0.11313704,59979.0,59976.0,0.00333428]
[1720002891089,0.3,59984.0,59977.0,0.1602988]
[1720002891300,0.1120369,59983.0,59977.0,0.1602988]
[1720002891505,0.11203977,59982.0,59977.0,0.1602988]
[1720002891704,0.22361508,59993.0,59977.0,0.1602988]
[1720002891886,0.22361508,59991.0,59977.0,0.1602988]
[1720002892092,0.11205086,59990.0,59977.0,0.1602988]
[1720002892455,0.11282115,59989.0,59977.0,0.1602988]
[1720002892693,0.11282216,59988.0,59977.0,0.1602988]
[1720002892916,0.11282216,59988.0,59958.0,0.08015582]
[1720002892917,0.22361508,59980.0,59958.0,0.08015582]
[1720002893118,0.11282216,59979.0,59976.0,0.08015582]
[1720002893290,0.22361508,59994.0,59966.0,0.08015582]
[1720002893448,0.11266748,59993.0,59966.0,0.08015582]
[1720002894005,0.11266748,59993.0,59972.0,0.08015582]
[1720002894748,0.265,60004.0,59983.0,0.1602988]
[1720002894749,0.22361508,59999.0,59983.0,0.1602988]
[1720002894951,0.11200812,59998.0,59984.0,0.00333324]
[1720002895147,0.11201176,59997.0,59985.0,0.16363207]
[1720002895359,0.22361508,60003.0,59986.0,0.00333329]
[1720002895602,0.565,60004.0,59988.0,0.1602988]
[1720002895603,0.11201472,59999.0,59988.0,0.1602988]
[1720002895923,0.11201472,59998.0,59988.0,0.1602988]
[1720002896086,0.11201472,59997.0,59988.0,0.1602988]
[1720002896287,0.78861508,60004.0,59988.0,0.1602988]
[1720002896487,0.1124962,60001.0,59988.0,0.1602988]
[1720002896997,0.1124962,60001.0,59989.0,0.0092]
[1720002897220,0.1124962,60001.0,59990.0,0.1602988]
[1720002897842,0.857557,60000.0,59990.0,0.1602988]
[1720002898001,0.11247174,59999.0,59990.0,0.1602988]
[1720002898186,0.11247174,60001.0,59990.0,0.1602988]
[1720002898389,0.11247174,60000.0,59991.0,0.1602988]
[1720002899935,0.11247174,59999.0,59991.0,0.1602988]
[1720002900186,0.11247174,59998.0,59991.0,0.1602988]
[1720002900471,0.11195327,59997.0,59991.0,0.1602988]
[1720002900681,0.3,59999.0,59991.0,0.1602988]
[1720002900879,0.11195458,59998.0,59991.0,0.1602988]
[1720002901032,0.22361508,59993.0,59976.0,0.48093494]
[1720002901419,0.111843,59992.0,59985.0,0.1602988]
[1720002901623,0.11184422,59992.0,59986.0,0.00333327]
[1720002901815,0.00083,60002.0,59988.0,0.1602988]
[1720002902032,0.11185419,60001.0,59988.0,0.1602988]
[1720002902172,0.33546927,60001.0,59988.0,0.1602988]
[1720002902372,0.11185419,60000.0,59988.0,0.1602988]
[1720002902550,0.06,59995.0,59988.0,0.1602988]
[1720002902755,0.47010519,59994.0,59988.0,0.1602988]
[1720002902953,0.3,59990.0,59988.0,0.1602988]
[1720002903171,0.3,59990.0,59971.0,0.0092]
[1720002903172,0.06,59987.0,59971.0,0.0092]
[1720002903364,0.25174033,59986.0,59973.0,0.1602988]
[1720002903568,0.10614033,59985.0,59973.0,0.1602988]
[1720002904010,0.10614033,59985.0,59950.0,0.07432699]
[1720002904011,0.22361508,59979.0,59974.0,0.1602988]
[1720002904218,0.10612582,59978.0,59974.0,0.1602988]
[1720002904414,0.10612582,59977.0,59974.0,0.1602988]
[1720002904584,0.10612582,59976.0,59974.0,0.1602988]
[1720002904785,0.04226901,59984.0,59975.0,0.24045462]
[1720002905024,0.22361508,59985.0,59976.0,0.1602988]
[1720002905411,0.0422745,59990.0,59977.0,0.08348983]
[1720002905599,0.0422745,59990.0,59978.0,0.1602988]
[1720002906009,0.3,59989.0,59978.0,0.1602988]
[1720002908069,0.22361508,59985.0,59978.0,0.1602988]
[1720002908621,0.3,59986.0,59978.0,0.1602988]
[1720002909032,0.26588882,59988.0,59978.0,0.1602988]
[1720002909033,0.04227374,59988.0,59978.0,0.1602988]
[1720002909781,0.03,60009.0,59971.0,0.08015582]
[1720002909782,0.22361508,59995.0,59980.0,0.24045462]
[1720002909938,0.1153,59994.0,59980.0,0.1602988]
[1720002910100,0.22361508,59987.0,59980.0,0.1602988]
[1720002910303,0.22361508,59988.0,59981.0,0.00333393]
[1720002910554,0.52361508,59989.0,59982.0,0.1602988]
[1720002910748,0.3,59989.0,59982.0,0.1602988]
[1720002910978,0.08015582,60005.0,59959.0,0.005]
[1720002910979,0.22361508,59976.0,59959.0,0.005]
[1720002911103,0.22361508,59976.0,59947.0,0.09920378]
[1720002911104,0.22361508,59964.0,59946.0,0.0092]
[1720002911313,0.22361508,59960.0,59947.0,0.1602988]
[1720002911563,0.52361508,59960.0,59947.0,0.1602988]
[1720002911712,0.08134442,59959.0,59947.0,0.1602988]
[1720002911955,0.22361508,59956.0,59947.0,0.1602988]
[1720002912157,0.28361508,59956.0,59947.0,0.1602988]
[1720002912358,0.28361508,59956.0,59919.0,0.04969337]
[1720002912359,0.22361508,59948.0,59927.0,0.0092]
[1720002912634,0.22361508,59948.0,59931.0,0.48093494]
[1720002912635,0.3,59937.0,59931.0,0.48093494]
[1720002912816,0.22361508,59947.0,59932.0,0.16363544]
[1720002912926,0.08208384,59946.0,59932.0,0.1602988]
[1720002913125,0.08208384,59946.0,59939.0,0.08015582]
[1720002913335,0.22361508,59969.0,59945.0,0.08015582]
[1720002913532,0.5513,59971.0,59944.0,0.0092]
[1720002913533,0.22361508,59959.0,59944.0,0.0092]
[1720002913729,0.3,59957.0,59945.0,0.1602988]
[1720002913951,0.3,59951.0,59945.0,0.1602988]
[1720002914152,0.03,59967.0,59936.0,0.0092]
[1720002914153,0.22361508,59958.0,59946.0,0.24045462]
[1720002914320,0.03,59977.0,59946.0,0.24045462]
[1720002914321,0.0200835,59987.0,59953.0,0.08015582]
[1720002914527,0.70455002,59983.0,59967.0,0.08015582]
[1720002914748,0.3,59988.0,59968.0,0.00333469]
[1720002915081,0.08116398,59987.0,59973.0,0.08015582]
[1720002915335,0.33745398,59986.0,59973.0,0.08015582]
[1720002915543,0.33745398,59986.0,59967.0,0.08015582]
[1720002915544,0.23191698,59985.0,59974.0,0.1602988]
[1720002915851,0.3,59979.0,59975.0,0.16363324]
[1720002915955,0.3,59979.0,59961.0,0.08015582]
[1720002915956,0.22361508,59975.0,59961.0,0.08015582]
[1720002916081,0.22361508,59975.0,59962.0,0.1602988]
[1720002916082,0.08116398,59974.0,59962.0,0.1602988]
[1720002916284,0.52361508,59970.0,59962.0,0.1602988]
[1720002916485,0.52361508,59970.0,59944.0,0.0092]
[1720002916486,0.22361508,59963.0,59944.0,0.0092]
[1720002916687,0.22361508,59963.0,59949.0,0.48093494]
[1720002916688,0.08116398,59962.0,59949.0,0.48093494]
[1720002916907,0.3,59971.0,59944.0,0.0092]
[1720002916908,0.08116398,59961.0,59953.0,0.08015582]
[1720002917224,0.30083,59989.0,59953.0,0.08015582]
[1720002917225,0.22361508,59988.0,59954.0,0.21253394]
[1720002917372,0.48115176,59988.0,59974.0,0.08015582]
[1720002917569,0.48115176,59988.0,59968.0,0.08015582]
[1720002917570,0.07029176,59987.0,59968.0,0.08015582]
[1720002917825,0.210874,59986.0,59968.0,0.08015582]
[1720002918045,0.00083,59989.0,59978.0,0.1602988]
[1720002918240,0.93777405,59988.0,59978.0,0.1602988]
[1720002918412,0.07029797,59987.0,59979.0,0.00333373]
[1720002918613,0.00083,59989.0,59980.0,0.1602988]
[1720002918819,0.07031947,59988.0,59981.0,0.00333359]
[1720002919022,0.153975,59987.0,59982.0,0.16363245]
[1720002919179,0.07031947,59986.0,59982.0,0.1602988]
[1720002919383,0.07031947,59986.0,59983.0,0.00333377]
[1720002919587,0.00083,59989.0,59985.0,0.1602988]
[1720002920635,0.00083,59989.0,59987.0,0.1602988]
[1720002920871,0.00083,59989.0,59988.0,0.08348896]
[1720002921127,0.00083,59989.0,59988.0,0.24378776]
[1720002921639,0.00083,59989.0,59988.0,0.24045462]